bitfinex/quotes_BTCUSD_20250408
["timestamp","ask_amount","ask_price","bid_price","bid_amount"]
[1744126940392,0.254563,78566.0,78561.0,0.012728]
[1744126940593,0.254563,78566.0,78562.0,0.254576]
[1744126940793,0.254563,78566.0,78559.0,0.267314]
[1744126940794,0.267295,78565.0,78559.0,0.012729]
[1744126941006,0.254576,78562.0,78559.0,0.254584]
[1744126941352,0.254576,78562.0,78558.0,0.254586]
[1744126941487,0.254589,78558.0,78554.0,0.254599]
[1744126941667,0.00012572,78562.0,78558.0,0.012729]
[1744126941866,0.00012572,78562.0,78561.0,0.267307]
[1744126942587,0.34012572,78562.0,78559.0,0.254582]
[1744126942768,0.34012572,78562.0,78523.0,3.188769]
[1744126942769,0.34,78551.0,78548.0,0.012731]
[1744126942974,0.35273,78553.0,78542.0,0.012732]
[1744126943179,0.594613,78551.0,78547.0,0.254624]
[1744126943533,0.34,78551.0,78550.0,0.01273]
[1744126944167,0.00012572,78562.0,78561.0,0.267307]
[1744126944543,0.00112572,78562.0,78559.0,0.254585]
[1744126944770,0.34,78544.0,78539.0,0.012732]
[1744126944939,0.01273,78549.0,78539.0,0.012732]
[1744126944940,0.594618,78549.0,78546.0,0.254627]
[1744126945357,0.607351,78549.0,78540.0,0.254645]
[1744126945709,0.012732,78542.0,78537.0,0.254656]
[1744126946115,0.34,78540.0,78536.0,0.012733]
[1744126946316,0.34,78549.0,78548.0,0.254621]
[1744126946457,0.34,78549.0,78548.0,0.39361064]
[1744126946739,0.00012572,78562.0,78561.0,0.267307]
[1744126946963,0.00012572,78562.0,78561.0,0.39356564]
[1744126947639,0.41639483,78571.0,78563.0,0.012728]
[1744126947884,0.34,78570.0,78569.0,0.254553]
[1744126948106,0.01390963,78570.0,78567.0,0.012727]
[1744126948334,0.012728,78563.0,78556.0,0.012729]
[1744126948558,0.012728,78565.0,78558.0,0.012729]
[1744126948780,0.34,78563.0,78560.0,0.25458]
[1744126949005,0.254551,78570.0,78565.0,0.254564]
[1744126949242,0.01358467,78570.0,78568.0,0.254555]
[1744126949453,0.012727,78573.0,78568.0,0.254553]
[1744126949920,0.267275,78571.0,78566.0,0.25456]
[1744126950141,0.267274,78571.0,78566.0,0.254562]
[1744126950584,0.2548572,78579.0,78578.0,0.254524]
[1744126950585,0.0003362,78579.0,78578.0,0.254524]
[1744126950784,0.01401974,78579.0,78578.0,0.254524]
[1744126951200,0.26853974,78579.0,78574.0,0.254537]
[1744126951573,0.02674574,78579.0,78568.0,0.013727]
[1744126951782,0.012726,78574.0,78568.0,0.254556]
[1744126951991,0.012726,78576.0,78570.0,0.012727]
[1744126952137,0.25454,78574.0,78570.0,0.254548]
[1744126952367,0.254541,78573.0,78569.0,0.26728]
[1744126952715,0.01273,78550.0,78544.0,0.012731]
[1744126953013,0.34,78550.0,78548.0,0.25462]
[1744126953480,0.34,78550.0,78545.0,0.267361]
[1744126953686,0.34,78550.0,78529.0,0.382021]
[1744126953687,0.254667,78534.0,78527.0,0.012734]
[1744126953898,0.012732,78542.0,78535.0,0.267396]
[1744126954114,0.254634,78544.0,78539.0,0.267382]
[1744126954338,0.666408,78553.0,78544.0,0.012731]
[1744126954521,0.01454085,78559.0,78549.0,0.254618]
[1744126954522,0.02726985,78559.0,78549.0,0.254618]
[1744126954716,0.267348,78549.0,78548.0,0.001]
[1744126955464,0.267348,78549.0,78535.0,0.254662]
[1744126955465,0.34,78543.0,78537.0,0.012732]
[1744126955798,0.34,78543.0,78542.0,0.267372]
[1744126956007,0.267326,78556.0,78550.0,0.254612]
[1744126956220,0.254621,78549.0,78545.0,0.254631]
[1744126956419,0.005,78549.0,78544.0,0.012731]
[1744126956626,0.259619,78549.0,78545.0,0.254631]
[1744126956842,0.254619,78549.0,78545.0,0.254631]
[1744126957215,0.267344,78552.0,78545.0,0.012731]
[1744126957415,0.254618,78549.0,78546.0,0.254627]
[1744126957615,0.254617,78550.0,78546.0,0.254627]
[1744126957797,0.254618,78549.0,78546.0,0.254627]
[1744126957999,0.012731,78546.0,78539.0,0.267379]
[1744126958227,0.254634,78545.0,78541.0,0.25464]
[1744126958423,0.254628,78546.0,78542.0,0.012732]
[1744126958623,0.270348,78549.0,78545.0,0.25463]
[1744126958991,0.004,78549.0,78548.0,0.267352]
[1744126959217,0.012729,78557.0,78551.0,0.25461]
[1744126959218,0.2546,78555.0,78551.0,0.25461]
[1744126959453,0.26925247,78559.0,78556.0,0.254595]
[1744126959679,0.34,78558.0,78556.0,0.254595]
[1744126959845,0.34,78558.0,78557.0,0.254592]
[1744126960105,0.34,78558.0,78553.0,0.254604]
[1744126960317,0.34,78555.0,78553.0,0.254604]
[1744126960764,0.34,78555.0,78552.0,0.254602]
[1744126960933,0.012731,78548.0,78538.0,0.012732]
[1744126961146,0.012732,78541.0,78533.0,0.0451]
[1744126961442,0.267384,78539.0,78535.0,0.254661]
[1744126961595,0.254645,78541.0,78537.0,0.012732]
[1744126961795,0.254641,78542.0,78538.0,0.267384]
[1744126961997,0.254618,78549.0,78537.0,0.012732]
[1744126962204,0.012733,78535.0,78525.0,0.0451]
[1744126962419,0.25466,78536.0,78533.0,0.254669]
[1744126962621,0.254656,78538.0,78533.0,0.254669]
[1744126962830,0.594656,78538.0,78537.0,0.002]
[1744126963031,0.34,78538.0,78537.0,0.267389]
[1744126965059,0.34,78538.0,78537.0,0.272389]
[1744126965790,0.34,78538.0,78537.0,0.39864764]
[1744126966492,0.607385,78538.0,78537.0,0.005]
[1744126966723,0.62192585,78538.0,78537.0,0.005]
[1744126966977,0.74818449,78538.0,78537.0,0.005]
[1744126967667,0.74818449,78538.0,78537.0,0.002]
[1744126968105,0.78095356,78538.0,78537.0,0.002]
[1744126968593,0.63115407,78538.0,78537.0,0.002]
[1744126968810,0.254683,78529.0,78526.0,0.25469]
[1744126969032,0.012733,78531.0,78524.0,0.254864]
[1744126969033,0.254689,78527.0,78524.0,0.254864]
[1744126969248,0.012734,78528.0,78525.0,0.254694]
[1744126969470,0.012734,78528.0,78524.0,0.000168]
[1744126969471,0.012732,78537.0,78530.0,0.012733]
[1744126969695,0.38991364,78538.0,78537.0,0.267389]
[1744126969696,0.009,78538.0,78537.0,0.267389]
[1744126969907,0.018,78538.0,78537.0,0.268389]
[1744126970043,0.254638,78543.0,78540.0,0.254646]
[1744126970239,0.012732,78542.0,78536.0,0.267392]
[1744126970498,0.012733,78536.0,78528.0,0.012734]
[1744126970700,0.41639483,78540.0,78539.0,0.012732]
[1744126970902,0.0001256,78549.0,78539.0,0.012732]
[1744126970903,0.0001256,78549.0,78543.0,0.012731]
[1744126971060,0.0001256,78549.0,78548.0,0.267352]
[1744126971261,0.0001256,78549.0,78548.0,0.254621]
[1744126971689,0.0001256,78549.0,78539.0,0.012732]
[1744126971891,0.012734,78529.0,78521.0,0.0458]
[1744126972097,0.254686,78528.0,78524.0,0.254867]
[1744126972314,0.41639483,78534.0,78528.0,0.012734]
[1744126972506,0.41639483,78534.0,78530.0,0.254678]
[1744126972507,0.254666,78534.0,78530.0,0.254678]
[1744126972705,0.267389,78537.0,78532.0,0.25467]
[1744126972908,0.267389,78537.0,78533.0,0.254667]
[1744126973110,0.007,78540.0,78539.0,0.267382]
[1744126973247,0.254625,78547.0,78543.0,0.254637]
[1744126973473,0.25463,78546.0,78542.0,0.25464]
[1744126973678,0.254641,78542.0,78539.0,0.255647]
[1744126973920,0.267379,78540.0,78539.0,0.001]
[1744126974120,0.26075667,78540.0,78531.0,0.254675]
[1744126974301,0.254657,78537.0,78533.0,0.267401]
[1744126974513,0.012732,78538.0,78534.0,0.254666]
[1744126974716,0.24802467,78540.0,78535.0,0.254661]
[1744126974924,0.004,78537.0,78536.0,0.267393]
[1744126975314,0.007,78540.0,78539.0,0.267382]
[1744126976783,0.009,78540.0,78539.0,0.268382]
[1744126977148,0.015,78540.0,78539.0,0.268382]
[1744126977590,0.009,78540.0,78539.0,0.268382]
[1744126977993,0.016,78540.0,78539.0,0.268382]
[1744126979011,0.007,78540.0,78539.0,0.267382]
[1744126979171,0.012729,78555.0,78549.0,0.254616]
[1744126979366,0.42912383,78560.0,78549.0,0.01273]
[1744126979594,0.41639483,78560.0,78556.0,0.012729]
[1744126979768,0.02726885,78565.0,78560.0,0.254579]
[1744126979971,0.02726885,78565.0,78556.0,0.012729]
[1744126979972,0.012728,78561.0,78556.0,0.254595]
[1744126980158,0.012728,78561.0,78554.0,0.267331]
[1744126980358,0.012728,78561.0,78554.0,0.01273]
[1744126980359,0.009,78559.0,78554.0,0.01273]
[1744126980809,0.009,78559.0,78552.0,0.01273]
[1744126981009,0.009,78559.0,78450.0,0.06310139]
[1744126981010,0.25462,78549.0,78541.0,0.254641]
[1744126981224,0.01273,78552.0,78541.0,0.254641]
[1744126981225,0.254621,78550.0,78545.0,0.012731]
[1744126981397,0.01273,78552.0,78547.0,0.254621]
[1744126982192,0.267344,78551.0,78549.0,0.001]
[1744126982428,0.012731,78546.0,78537.0,0.012732]
[1744126982631,0.41639483,78550.0,78547.0,0.001]
[1744126982804,0.007,78552.0,78547.0,0.001]
[1744126982987,0.007,78552.0,78548.0,0.254619]
[1744126983328,0.254611,78551.0,78547.0,0.001]
[1744126983535,0.254611,78551.0,78546.0,0.267356]
[1744126983746,0.006,78550.0,78547.0,0.001]
[1744126984109,0.006,78550.0,78548.0,0.254621]
[1744126984302,0.006,78550.0,78547.0,0.013731]
[1744126984504,0.006,78550.0,78549.0,0.267348]
[1744126985084,0.003,78551.0,78550.0,0.267344]
[1744126986068,0.009,78552.0,78551.0,0.267341]
[1744126986230,0.82819483,78560.0,78557.0,0.25459]
[1744126986426,0.4118,78560.0,78559.0,0.254585]
[1744126986683,0.41639483,78580.0,78576.0,0.267255]
[1744126986874,0.254582,78560.0,78559.0,0.12625864]
[1744126987173,0.012727,78568.0,78560.0,0.254582]
[1744126987174,0.254569,78565.0,78560.0,0.254582]
[1744126987328,0.267286,78567.0,78558.0,0.012729]
[1744126987528,0.2673,78564.0,78556.0,0.267321]
[1744126987864,0.254566,78565.0,78559.0,0.012729]
[1744126988272,0.012728,78564.0,78557.0,0.267321]
[1744126988529,0.012728,78566.0,78560.0,0.012729]
[1744126988722,0.254543,78574.0,78569.0,0.254552]
[1744126988920,0.01285167,78577.0,78564.0,0.012728]
[1744126989125,0.254537,78574.0,78569.0,0.254551]
[1744126989329,0.00012567,78577.0,78569.0,0.012727]
[1744126989488,0.254543,78572.0,78567.0,0.012727]
[1744126989683,0.00012567,78577.0,78572.0,0.012727]
[1744126989887,0.00012567,78577.0,78576.0,0.267256]
[1744126990091,0.00912567,78577.0,78576.0,0.267256]
[1744126991505,0.01012567,78577.0,78576.0,0.267256]
[1744126991982,0.00112567,78577.0,78576.0,0.267256]
[1744126992895,6.7e-07,78577.0,78576.0,0.44301464]
[1744126993025,8.7e-07,78579.0,78578.0,0.31495]
[1744126993227,8.7e-07,78579.0,78578.0,0.44120864]
[1744126994124,8.7e-07,78579.0,78578.0,0.45020864]
[1744126994797,0.000336,78593.0,78583.0,0.267232]
[1744126994959,0.000336,78593.0,78583.0,0.39349064]
[1744126996115,0.001336,78584.0,78583.0,0.40049064]
[1744126996505,0.002336,78584.0,78583.0,0.40949064]
[1744126996955,0.000336,78593.0,78592.0,0.267201]
[1744126997147,0.000336,78593.0,78592.0,0.56485964]
[1744126997438,0.002,78599.0,78598.0,0.267181]
[1744126997652,1e-06,78599.0,78598.0,0.44113964]
[1744126998863,0.0133798,78599.0,78598.0,0.44113964]
[1744126999066,0.0133798,78599.0,78592.0,0.1794]
[1744126999205,0.0133798,78599.0,78594.0,0.012723]
[1744126999408,0.0133798,78599.0,78598.0,0.012722]
[1744126999606,0.0133798,78599.0,78598.0,0.270181]
[1744127000004,0.0133798,78599.0,78598.0,0.272181]
[1744127000248,0.0133798,78599.0,78598.0,0.269181]
[1744127001245,0.0133798,78599.0,78598.0,0.39643964]
[1744127001573,0.0133798,78599.0,78598.0,0.270181]
[1744127001915,0.0133798,78599.0,78598.0,0.268181]
[1744127002114,0.0143798,78599.0,78598.0,0.268181]
[1744127002319,0.0143798,78599.0,78598.0,0.39443964]
[1744127006328,0.0143798,78599.0,78598.0,0.39343964]
[1744127006530,0.0133798,78599.0,78598.0,0.39643964]
[1744127006914,0.0133798,78599.0,78598.0,0.270181]
[1744127007565,0.0133798,78599.0,78598.0,0.39643964]
[1744127007768,0.0133798,78599.0,78598.0,0.270181]
[1744127008665,0.0133798,78599.0,78598.0,0.267181]
[1744127009065,0.0143798,78599.0,78598.0,0.268181]
[1744127009393,0.0133798,78599.0,78598.0,0.267181]
[1744127009527,0.0133798,78599.0,78598.0,0.39343964]
[1744127009726,0.0133798,78599.0,78598.0,0.39643964]
[1744127010204,0.0133798,78599.0,78598.0,0.270181]
[1744127010982,0.0133798,78599.0,78598.0,0.39643964]
[1744127011195,1e-06,78599.0,78598.0,0.39643964]
[1744127011937,1e-06,78599.0,78598.0,0.39543964]
[1744127012378,1e-06,78599.0,78598.0,0.39343964]
[1744127012591,1e-06,78599.0,78598.0,0.39543964]
[1744127012935,0.01351526,78599.0,78598.0,0.270181]
[1744127013155,0.01351526,78599.0,78598.0,0.268181]
[1744127013359,0.01351526,78599.0,78598.0,0.271181]
[1744127014226,0.01351526,78599.0,78598.0,0.39743964]
[1744127019550,0.01351526,78599.0,78598.0,0.258459]
[1744127019755,0.01351526,78599.0,78598.0,0.271181]
[1744127020367,0.01351526,78599.0,78598.0,0.268181]
[1744127021642,0.01351526,78599.0,78598.0,0.269181]
[1744127021844,0.01351526,78599.0,78598.0,0.270181]
[1744127021997,0.01351526,78599.0,78598.0,0.269181]
[1744127022337,0.0373484,78599.0,78598.0,0.267181]
[1744127022549,0.0383484,78599.0,78598.0,0.268181]
[1744127022914,0.0383484,78599.0,78598.0,0.39443964]
[1744127024003,0.0383484,78599.0,78598.0,0.268181]
[1744127025237,0.0383484,78599.0,78598.0,0.39443964]
[1744127025935,0.0383484,78599.0,78598.0,0.39343964]
[1744127026137,0.0373484,78599.0,78598.0,0.39343964]
[1744127026348,0.0373484,78599.0,78598.0,0.39643964]
[1744127027098,0.0373484,78599.0,78598.0,0.39743964]
[1744127027849,0.01351526,78599.0,78598.0,0.39743964]
[1744127028393,0.03735385,78599.0,78598.0,0.39743964]
[1744127030145,8.5e-07,78599.0,78598.0,0.39743964]
[1744127030409,8.5e-07,78607.0,78606.0,0.267154]
[1744127030607,8.5e-07,78607.0,78606.0,0.39341264]
[1744127030718,5e-07,78607.0,78606.0,0.39341264]
[1744127031427,5e-07,78607.0,78606.0,0.81081264]
[1744127032691,8e-07,78640.0,78639.0,0.267042]
[1744127032886,5e-07,78651.0,78649.0,0.267008]
[1744127033251,5e-07,78651.0,78648.0,0.254296]
[1744127033412,0.012714,78648.0,78641.0,0.254319]
[1744127033618,0.267026,78644.0,78637.0,0.012716]
[1744127033869,0.25863542,78651.0,78645.0,0.012715]
[1744127034040,0.25863542,78651.0,78650.0,0.012714]
[1744127034041,0.01154314,78651.0,78650.0,0.012714]
[1744127038008,0.01154314,78651.0,78650.0,0.267005]
[1744127040907,0.01154314,78651.0,78642.0,0.267031]
[1744127040908,0.012714,78649.0,78641.0,0.012716]
[1744127041109,0.25863542,78651.0,78642.0,0.012715]
[1744127041380,0.25863542,78651.0,78650.0,0.267005]
[1744127041381,0.01154314,78651.0,78650.0,0.267005]
[1744127041570,0.01154314,78651.0,78642.0,0.012715]
[1744127041775,0.254294,78649.0,78645.0,0.254306]
[1744127042297,0.02367627,78648.0,78646.0,0.254302]
[1744127042479,0.02367627,78648.0,78647.0,0.267015]
[1744127043059,0.02367627,78648.0,78647.0,0.39327364]
[1744127043384,0.01154314,78651.0,78650.0,0.267005]
[1744127043810,0.01154314,78651.0,78650.0,0.39326364]
[1744127044491,0.05,78694.0,78650.0,0.39326364]
[1744127044492,0.03160725,78670.0,78669.0,0.254229]
[1744127044695,0.01454085,78675.0,78668.0,0.254232]
[1744127044892,0.00012564,78670.0,78669.0,0.254229]
[1744127045123,0.00012564,78670.0,78669.0,0.26694]
[1744127045345,0.00012564,78670.0,78666.0,0.254238]
[1744127045552,0.00012564,78670.0,78667.0,0.254235]
[1744127045768,0.254229,78669.0,78664.0,0.012712]
[1744127045912,0.27789022,78668.0,78664.0,0.254244]
[1744127046340,0.012713,78659.0,78652.0,0.012714]
[1744127046548,0.012714,78652.0,78645.0,0.012715]
[1744127046874,0.254285,78652.0,78648.0,0.254295]
[1744127047076,0.254297,78648.0,78642.0,0.267031]
[1744127047232,0.012715,78643.0,78635.0,0.437813]
[1744127047431,0.24709228,78652.0,78636.0,0.012716]
[1744127047432,0.254311,78644.0,78636.0,0.012716]
[1744127047675,0.254311,78644.0,78630.0,0.254354]
[1744127047676,0.012716,78640.0,78629.0,0.012717]
[1744127047816,0.41677436,78633.0,78632.0,0.267066]
[1744127048015,0.254326,78639.0,78633.0,0.012717]
[1744127048247,0.02365722,78638.0,78635.0,0.006]
[1744127048489,0.267052,78636.0,78635.0,0.006]
[1744127048826,0.02412782,78636.0,78633.0,0.254345]
[1744127049043,0.012717,78629.0,78624.0,0.254373]
[1744127049399,0.012717,78630.0,78625.0,0.25437]
[1744127049604,0.01454085,78627.0,78617.0,0.267115]
[1744127049803,0.267092,78625.0,78621.0,0.254384]
[1744127049978,0.34,78624.0,78622.0,0.012719]
[1744127050179,0.34056823,78624.0,78622.0,0.2671]
[1744127050344,0.34056823,78624.0,78621.0,0.267102]
[1744127050572,0.35174787,78624.0,78618.0,0.0003356]
[1744127050775,0.34,78621.0,78618.0,0.2547286]
[1744127050971,0.34,78621.0,78619.0,0.25439]
[1744127051169,0.00069804,78620.0,78619.0,0.25439]
[1744127051532,0.02437316,78620.0,78619.0,0.267109]
[1744127051916,0.02367512,78620.0,78619.0,0.267109]
[1744127052090,0.01183122,78620.0,78619.0,0.44036764]
[1744127052294,0.01236688,78620.0,78619.0,0.267109]
[1744127052494,0.01088769,78624.0,78623.0,0.267096]
[1744127052704,0.34,78626.0,78625.0,0.26709]
[1744127052903,0.34012557,78639.0,78638.0,0.267045]
[1744127053378,0.00012557,78639.0,78638.0,0.267045]
[1744127053528,0.01112572,78639.0,78638.0,0.267045]
[1744127053723,0.00012557,78639.0,78638.0,0.39330364]
[1744127053955,0.00012557,78639.0,78638.0,0.267045]
[1744127054096,0.00012557,78639.0,78632.0,0.012717]
[1744127054097,0.012716,78635.0,78625.0,0.012718]
[1744127054314,0.67111636,78635.0,78631.0,0.254351]
[1744127054717,0.67111636,78635.0,78631.0,0.267068]
[1744127054921,0.41677436,78635.0,78633.0,0.254343]
[1744127055118,0.00912557,78639.0,78634.0,0.012717]
[1744127055356,0.001,78635.0,78634.0,0.267057]
[1744127056187,0.003,78635.0,78634.0,0.267057]
[1744127056309,0.001,78635.0,78634.0,0.267057]
[1744127056514,0.007,78635.0,78634.0,0.001]
[1744127056715,0.274055,78635.0,78634.0,0.001]
[1744127056918,0.29459585,78635.0,78634.0,0.001]
[1744127057125,0.2947911,78635.0,78634.0,0.001]
[1744127057320,0.00713035,78635.0,78634.0,0.268059]
[1744127057543,0.00719525,78635.0,78634.0,0.268059]
[1744127057733,0.013,78635.0,78634.0,0.268059]
[1744127059925,0.013,78635.0,78634.0,0.39431764]
[1744127060476,0.21519404,78655.0,78651.0,0.254286]
[1744127060713,0.254286,78652.0,78649.0,0.267005]
[1744127060934,0.012716,78636.0,78634.0,0.00141899]
[1744127061090,0.012716,78635.0,78628.0,0.26708]
[1744127061288,0.01454085,78643.0,78631.0,0.267066]
[1744127061512,0.25473165,78643.0,78638.0,0.254326]
[1744127061727,0.012716,78638.0,78630.0,0.012717]
[1744127061877,0.254336,78637.0,78632.0,0.254348]
[1744127062080,0.012716,78641.0,78632.0,0.254348]
[1744127062081,0.267037,78641.0,78632.0,0.254349]
[1744127062276,0.012716,78635.0,78628.0,0.012718]
[1744127062534,0.254344,78634.0,78629.0,0.267075]
[1744127062735,0.00022786,78634.0,78631.0,0.012717]
[1744127062934,0.267056,78635.0,78628.0,0.267079]
[1744127063084,6.551e-05,78633.0,78630.0,0.012717]
[1744127063283,0.254323,78640.0,78635.0,0.012716]
[1744127063671,0.00019519,78639.0,78636.0,0.254335]
[1744127063815,0.25439239,78639.0,78635.0,0.254338]
[1744127063996,0.254329,78638.0,78634.0,0.254342]
[1744127064200,0.0237411,78638.0,78634.0,0.012717]
[1744127064412,0.012717,78634.0,78627.0,0.012718]
[1744127064608,0.254355,78631.0,78627.0,0.254362]
[1744127064809,0.0237411,78630.0,78628.0,0.012718]
[1744127065021,0.0237411,78630.0,78628.0,0.254361]
[1744127065219,0.012719,78622.0,78611.0,0.002]
[1744127065483,0.16271674,78629.0,78622.0,0.012719]
[1744127065711,0.012718,78627.0,78621.0,0.267101]
[1744127065915,0.254354,78631.0,78618.0,0.0130546]
[1744127065916,0.004,78639.0,78635.0,0.001]
[1744127066122,0.004,78639.0,78638.0,0.267045]
[1744127066254,0.41677436,78650.0,78642.0,0.254317]
[1744127066452,0.0122867,78643.0,78642.0,0.267032]
[1744127066841,0.03602255,78643.0,78642.0,0.267032]
[1744127067038,0.03602255,78643.0,78639.0,0.012716]
[1744127067243,0.03802255,78643.0,78642.0,0.001]
[1744127067439,0.29233555,78643.0,78642.0,0.001]
[1744127067667,0.03802255,78643.0,78642.0,0.001]
[1744127067876,0.03602255,78643.0,78640.0,0.254323]
[1744127068078,0.27805385,78642.0,78639.0,0.001]
[1744127068428,0.267039,78640.0,78639.0,0.001]
[1744127068840,0.02373585,78640.0,78639.0,0.001]
[1744127069189,0.27805885,78640.0,78639.0,0.002]
[1744127069395,0.2899269,78640.0,78639.0,0.001]
[1744127069596,0.0356039,78640.0,78635.0,0.012716]
[1744127069760,0.0523199,78640.0,78639.0,0.001]
[1744127069965,0.28290705,78640.0,78639.0,0.001]
[1744127070295,0.30665767,78640.0,78639.0,0.001]
[1744127070493,0.04161867,78640.0,78639.0,0.002]
[1744127070873,0.29594167,78640.0,78639.0,0.002]
[1744127071661,0.254355,78631.0,78624.0,0.012718]
[1744127071812,0.67111736,78634.0,78627.0,0.254365]
[1744127071982,0.67111736,78634.0,78626.0,0.012718]
[1744127071983,0.012717,78632.0,78626.0,0.254367]
[1744127072187,0.012717,78632.0,78626.0,0.254368]
[1744127072386,0.012717,78632.0,78627.0,0.254362]
[1744127072588,0.02375062,78631.0,78629.0,0.254356]
[1744127072790,0.27810462,78631.0,78627.0,0.254362]
[1744127072996,0.02375062,78631.0,78627.0,0.012718]
[1744127073219,0.02375062,78630.0,78628.0,0.25436]
[1744127073413,0.012718,78628.0,78620.0,0.012719]
[1744127073609,0.27811562,78627.0,78622.0,0.012719]
[1744127073869,0.02375062,78627.0,78625.0,0.254371]
[1744127074092,0.012719,78622.0,78613.0,0.01272]
[1744127074318,0.267102,78622.0,78616.0,0.254401]
[1744127074521,0.01187761,78621.0,78618.0,0.2547286]
[1744127074731,0.254391,78620.0,78618.0,0.0003356]
[1744127074908,0.28165085,78619.0,78588.0,0.2548266]
[1744127075137,0.012722,78599.0,78591.0,0.254479]
[1744127075346,0.254466,78596.0,78590.0,0.012724]
[1744127075570,0.254472,78594.0,78589.0,0.254487]
[1744127075728,0.02375062,78598.0,78597.0,0.254462]
[1744127075933,0.4118,78605.0,78604.0,0.26716]
[1744127076325,0.43556776,78605.0,78604.0,0.26728557]
[1744127076802,0.44745149,78605.0,78604.0,0.26728557]
[1744127076977,0.70188749,78605.0,78604.0,0.00012557]
[1744127077176,0.73314934,78605.0,78604.0,0.00012557]
[1744127077379,0.45145149,78605.0,78604.0,0.00012557]
[1744127077576,0.72060849,78605.0,78604.0,0.00012557]
[1744127077794,0.69600376,78605.0,78604.0,0.00012557]
[1744127078610,0.44156776,78605.0,78604.0,0.00012557]
[1744127078778,0.69600376,78605.0,78604.0,0.00012557]
[1744127079222,0.44156776,78605.0,78604.0,0.00012557]
[1744127079376,0.70872476,78605.0,78604.0,0.00012557]
[1744127079771,0.72059675,78605.0,78604.0,0.00012557]
[1744127080444,0.012723,78597.0,78593.0,0.0003356]
[1744127080647,0.12625864,78597.0,78591.0,0.012724]
[1744127080845,0.02376776,78596.0,78595.0,0.254468]
[1744127081016,0.02376776,78596.0,78595.0,0.267191]
[1744127081427,0.02376776,78602.0,78601.0,0.267171]
[1744127081585,0.02376776,78602.0,78601.0,0.39342964]
[1744127082006,0.004,78605.0,78604.0,0.26716]
[1744127082200,0.41715973,78611.0,78604.0,0.26716]
[1744127082201,0.41715973,78611.0,78610.0,0.267141]
[1744127082401,0.254398,78617.0,78612.0,0.267134]
[1744127082602,0.00864948,78617.0,78614.0,0.01272]
[1744127082804,0.254363,78628.0,78622.0,0.25438]
[1744127083061,0.254368,78626.0,78622.0,0.254381]
[1744127083266,0.254368,78626.0,78614.0,0.267126]
[1744127083267,0.01272,78616.0,78608.0,0.012721]
[1744127083466,0.254407,78614.0,78608.0,0.012721]
[1744127083622,0.008,78617.0,78612.0,0.01372]
[1744127083968,0.0237221,78616.0,78615.0,0.267124]
[1744127084542,0.03558564,78616.0,78615.0,0.267124]
[1744127085356,0.03558564,78616.0,78611.0,0.01272]
[1744127085357,0.03558564,78616.0,78606.0,0.012721]
[1744127085553,0.01272,78615.0,78610.0,0.25442]
[1744127085758,0.01186354,78614.0,78609.0,0.012721]
[1744127085971,0.01186354,78614.0,78611.0,0.254415]
[1744127086179,0.0237221,78613.0,78611.0,0.254415]
[1744127086377,0.254431,78607.0,78600.0,0.012722]
[1744127086727,0.01186354,78614.0,78605.0,0.267154]
[1744127086728,0.0237221,78606.0,78605.0,0.267154]
[1744127087051,0.03558564,78606.0,78605.0,0.267154]
[1744127088271,0.01186354,78606.0,78605.0,0.267154]
[1744127088471,0.01186354,78606.0,78605.0,0.254433]
[1744127088678,0.01186354,78616.0,78612.0,0.254413]
[1744127088896,0.2781281,78615.0,78612.0,0.254413]
[1744127089096,0.2781261,78615.0,78611.0,0.01272]
[1744127089490,0.0237221,78615.0,78612.0,0.254411]
[1744127089633,0.0237221,78614.0,78612.0,0.254411]
[1744127089972,0.0237221,78614.0,78612.0,0.255411]
[1744127090149,0.03558564,78613.0,78612.0,0.001]
[1744127090349,0.03558564,78613.0,78612.0,0.268134]
[1744127090554,0.03558564,78613.0,78612.0,0.267134]
[1744127090771,0.03558564,78613.0,78612.0,0.268134]
[1744127090958,0.03558564,78613.0,78612.0,0.255414]
[1744127091167,0.03558564,78613.0,78612.0,0.001]
[1744127091367,0.03558564,78613.0,78612.0,0.255414]
[1744127091726,0.03558564,78613.0,78612.0,0.254414]
[1744127092135,0.03558564,78613.0,78609.0,0.254423]
[1744127092367,0.03558564,78613.0,78612.0,0.254414]
[1744127092563,0.0287221,78613.0,78611.0,0.267136]
[1744127092900,0.254409,78614.0,78612.0,0.001]
[1744127093043,0.012719,78618.0,78612.0,0.01272]
[1744127093242,0.012719,78618.0,78613.0,0.25441]
[1744127093243,0.254404,78616.0,78613.0,0.25441]
[1744127093481,0.03561076,78617.0,78615.0,0.254402]
[1744127093658,0.03561076,78617.0,78616.0,0.267121]
[1744127096168,0.03561076,78617.0,78616.0,0.254401]
[1744127096354,0.03561076,78617.0,78616.0,0.256401]
[1744127096558,0.03561076,78617.0,78616.0,0.00154073]
[1744127096710,0.03561076,78617.0,78616.0,0.26866173]
[1744127097115,0.03561076,78617.0,78616.0,0.00154073]
[1744127097517,0.03561076,78617.0,78616.0,0.25594173]
[1744127097718,0.03561076,78617.0,78616.0,0.25249653]
[1744127097944,0.03561076,78617.0,78616.0,0.26521653]
[1744127099508,0.03561076,78617.0,78616.0,0.26721653]
[1744127100114,0.03561076,78617.0,78616.0,0.26621653]
[1744127100232,0.03561076,78617.0,78616.0,0.26921653]
[1744127100434,7.6e-07,78617.0,78616.0,0.44397517]
[1744127100640,1.4e-07,78626.0,78625.0,0.26709]
[1744127100832,0.24708618,78640.0,78635.0,0.012716]
[1744127101083,0.012718,78628.0,78617.0,0.0478]
[1744127101284,0.12625864,78639.0,78616.0,0.4659]
[1744127101285,0.254397,78617.0,78616.0,0.005]
[1744127101540,0.254378,78623.0,78617.0,0.254397]
[1744127101541,0.254386,78621.0,78617.0,0.254397]
[1744127101739,0.012718,78623.0,78620.0,0.254388]
[1744127101740,0.25438,78623.0,78620.0,0.254388]